fUSD/lending_fUSD_20260208
["ID","MTS","AMOUNT","RATE_DAILY","PERIOD"]
[404759110,1770513039940,-151.0,0.00032185,2]
[404759111,1770513039951,-151.0,0.00032185,2]
[404759113,1770513039962,-151.0,0.00032185,2]
[404759115,1770513039972,-151.0,0.00032185,2]
[404759116,1770513039983,-151.0,0.00032185,2]
[404759117,1770513039994,-151.0,0.00032185,2]
[404759118,1770513040005,-151.0,0.00032185,2]
[404759119,1770513040016,-151.0,0.00032185,2]
[404759120,1770513040027,-151.0,0.00032185,2]
[404759121,1770513040038,-5530.0,0.000322,3]
[404759122,1770513040049,-616.0,0.00032204,2]
[404759123,1770513040061,-1411.0,0.00032204,2]
[404759124,1770513040073,-3483.0,0.00032204,2]
[404759125,1770513040084,-1335.0,0.00032204,2]
[404759126,1770513040095,-1272.0,0.00032204,2]
[404759127,1770513040106,-9999.99,0.00032204,2]
[404759128,1770513040117,-6584.0,0.00032204,2]
[404759129,1770513040128,-412.0,0.00032204,2]
[404759130,1770513040139,-2447.0,0.00032204,2]
[404759131,1770513040150,-150.0,0.00032211,2]
[404759132,1770513040161,-150.0,0.00032211,2]
[404759133,1770513040172,-1567.92802206,0.00032278,2]
[404759134,1770513040182,-500.0,0.00032282,2]
[404759135,1770513040193,-4470.32910549,0.00032425,2]
[404759136,1770513040203,-507.0,0.00032616,2]
[404759137,1770513040213,-5530.0,0.00033,5]
[404759138,1770513040224,-598.93,0.000339,2]
[404759139,1770513040234,-180.22839491,0.00033962,2]
[404759140,1770513040245,-1567.92802206,0.00033962,2]
[404759141,1770513040256,-4470.32910549,0.00034088,2]
[404759142,1770513040266,-153.94240824,0.00034132,2]
[404759143,1770513040276,-507.0,0.00034309,4]
[404759144,1770513040286,-150.0,0.00034904,2]
[404759145,1770513040298,-500.0,0.00035178,2]
[404759146,1770513040310,-616.0,0.00035204,2]
[404759147,1770513040320,-1411.0,0.00035204,2]
[404759148,1770513040331,-3483.0,0.00035204,2]
[404759149,1770513040341,-1335.0,0.00035204,2]
[404759150,1770513040352,-1272.0,0.00035204,2]
[404759151,1770513040363,-6584.0,0.00035204,2]
[404759152,1770513040374,-412.0,0.00035204,2]
[404759153,1770513040384,-2447.0,0.00035204,2]
[404759154,1770513040395,-1500.0,0.00035616,15]
[404759155,1770513040407,-1500.0,0.00035616,15]
[404759156,1770513040423,-2601.552515,0.00035616,15]
[404759157,1770513040435,-222.64943599,0.00035616,7]
[404759158,1770513040445,-1567.92802206,0.00035646,2]
[404759159,1770513040454,-3240.0,0.00035725,120]
[404759160,1770513040463,-200.0,0.00035732,2]
[404759161,1770513040473,-4470.32910549,0.00035751,2]
[404759162,1770513040483,-507.0,0.00036001,6]
[404759163,1770513040493,-153.94240824,0.0003601,2]
[404759164,1770513040504,-166.66,0.00036207,2]
[404759165,1770513040515,-1240.076,0.00036216,44]
[404759166,1770513040528,-217.906,0.00036216,44]
[404759167,1770513040538,-3924.75,0.000363,2]
[404759168,1770513040551,-200.0,0.00036365,2]
[404759169,1770513040564,-203.78056404,0.00036488,2]
[404759170,1770513040576,-150.0,0.00036649,2]
[404759171,1770513040587,-170.81,0.000367,14]
[404759172,1770513040599,-1567.92802206,0.00037329,2]
[404759173,1770513040614,-166.66,0.00037402,2]
[404759174,1770513040625,-4470.32910549,0.00037413,2]
[404759175,1770513040634,-320.0,0.00037627,120]
[404759176,1770513040644,-507.0,0.00037693,8]
[404759177,1770513040655,-153.94240824,0.00037887,2]
[404759178,1770513040665,-2382.0888,0.00038009,2]
[404759179,1770513040675,-45330.9804,0.00038009,2]
[404759180,1770513040686,-598.93,0.000381,2]
[404759181,1770513040695,-500.0,0.0003811,30]
[404759182,1770513040705,-500.0,0.0003811,30]
[404759183,1770513040717,-521.5137665,0.0003811,30]
[404759184,1770513040729,-500.0,0.0003811,30]
[404759185,1770513040740,-500.0,0.0003811,30]
[404759186,1770513040751,-385.3762335,0.0003811,30]
[404759187,1770513040762,-500.0,0.0003811,2]
[404759188,1770513040773,-243.5,0.0003811,2]
[404759189,1770513040787,-150.0,0.0003811,20]
[404759190,1770513040799,-500.0,0.0003811,30]
[404759191,1770513040812,-267.91,0.0003811,30]
[404759192,1770513040822,-474.09507967,0.0003811,30]
[404759193,1770513040833,-487.0,0.00038111,2]
[404759194,1770513040841,-487.0,0.00038111,2]
[404759195,1770513040850,-487.0,0.00038111,2]
[404759196,1770513040858,-487.0,0.00038111,2]
[404759197,1770513040867,-487.0,0.00038111,2]
[404759198,1770513040876,-923.28,0.00038111,2]
[404759199,1770513040886,-273.13,0.00038187,2]
[404759200,1770513040895,-616.0,0.00038204,2]
[404759201,1770513040904,-1411.0,0.00038204,2]
[404759202,1770513040913,-3483.0,0.00038204,2]
[404759203,1770513040924,-1272.0,0.00038204,2]
[404759204,1770513040934,-6584.0,0.00038204,2]
[404759205,1770513040946,-412.0,0.00038204,2]
[404759206,1770513040957,-2447.0,0.00038204,2]
[404759207,1770513040968,-273.13,0.00038258,2]
[404759208,1770513040979,-273.13,0.00038328,2]
[404759209,1770513040989,-276.59215114,0.00038356,120]
[404759210,1770513041000,-273.13,0.00038398,2]
[404759211,1770513041010,-273.13,0.00038469,2]
[404759212,1770513041021,-150.0,0.00038482,2]
[404759213,1770513041031,-273.13,0.00038539,2]
[404759214,1770513041042,-166.66,0.00038597,2]
[404759215,1770513041054,-273.13,0.00038609,2]
[404759216,1770513041064,-273.13,0.0003868,2]
[404759217,1770513041076,-273.13,0.0003875,2]
[404759218,1770513041086,-273.13,0.0003882,2]
[404759219,1770513041097,-273.13,0.00038891,2]
[404759220,1770513041107,-273.13,0.00038961,2]
[404759221,1770513041121,-180.22839491,0.00039013,2]
[404759222,1770513041139,-1567.92802206,0.00039013,2]
[404759223,1770513041147,-273.13,0.00039032,2]
[404759224,1770513041158,-4470.32910549,0.00039076,2]
[404759225,1770513041168,-3924.75,0.000391,2]
[404759226,1770513041178,-273.13,0.00039102,2]
[404759227,1770513041188,-273.13,0.00039172,2]
[404759228,1770513041198,-273.13,0.00039243,2]
[404759229,1770513041208,-170.81,0.000393,14]
[404759230,1770513041218,-273.13,0.00039313,2]
[404759231,1770513041228,-273.13,0.00039383,2]
[404759232,1770513041238,-507.0,0.00039386,10]
[404759233,1770513041248,-273.13,0.00039454,2]
[404759234,1770513041258,-273.13,0.00039524,2]
[404759235,1770513041267,-402.0,0.00039644,2]
[404759236,1770513041278,-598.93,0.000397,30]
[404759237,1770513041288,-300.0,0.00039747,2]
[404759238,1770513041298,-300.0,0.00039747,2]
[404759239,1770513041308,-571.85515654,0.00039747,2]
[404759240,1770513041318,-300.0,0.00039747,2]
[404759241,1770513041328,-300.0,0.00039747,2]
[404759242,1770513041338,-1078.26092173,0.00039747,2]
[404759243,1770513041348,-300.0,0.00039747,2]
[404759244,1770513041360,-852.68208559,0.00039747,2]
[404759245,1770513041370,-305.02115314,0.00039747,2]
[404759246,1770513041380,-300.0,0.00039747,2]
[404759247,1770513041391,-881.38175827,0.00039747,2]
[404759248,1770513041401,-300.0,0.00039747,2]
[404759249,1770513041410,-300.0,0.00039747,2]
[404759250,1770513041420,-300.0,0.00039747,2]
[404759251,1770513041430,-300.0,0.00039747,2]
[404759252,1770513041440,-300.0,0.00039747,2]
[404759253,1770513041449,-306.19819169,0.00039747,2]
[404759254,1770513041459,-300.0,0.00039747,2]
[404759255,1770513041470,-457.17696299,0.00039747,2]
[404759256,1770513041480,-300.0,0.00039747,2]
[404759257,1770513041490,-300.0,0.00039747,2]
[404759258,1770513041500,-300.0,0.00039747,2]
[404759259,1770513041509,-370.09797997,0.00039747,2]
[404759260,1770513041525,-300.0,0.00039747,2]
[404759261,1770513041535,-300.0,0.00039747,2]
[404759262,1770513041545,-300.0,0.00039747,2]
[404759263,1770513041554,-300.0,0.00039747,2]
[404759264,1770513041566,-300.0,0.00039747,2]
[404759265,1770513041575,-300.0,0.00039747,2]
[404759266,1770513041586,-516.79047855,0.00039747,2]
[404759267,1770513041597,-305.17533586,0.00039747,2]
[404759268,1770513041607,-300.0,0.00039747,2]
[404759269,1770513041616,-300.0,0.00039747,2]
[404759270,1770513041626,-300.0,0.00039747,2]
[404759271,1770513041636,-300.0,0.00039747,2]
[404759272,1770513041646,-300.0,0.00039747,2]
[404759273,1770513041657,-571.85515654,0.00039747,2]
[404759274,1770513041666,-300.0,0.00039747,2]
[404759275,1770513041676,-300.0,0.00039747,2]
[404759276,1770513041686,-300.0,0.00039747,2]
[404759277,1770513041697,-1078.26092173,0.00039747,2]
[404759278,1770513041708,-300.0,0.00039747,2]
[404759279,1770513041718,-305.02115314,0.00039747,2]
[404759280,1770513041728,-852.68208559,0.00039747,2]
[404759281,1770513041737,-300.0,0.00039747,2]
[404759282,1770513041747,-881.38175827,0.00039747,2]
[404759283,1770513041757,-300.0,0.00039747,2]
[404759284,1770513041767,-300.0,0.00039747,2]
[404759285,1770513041777,-300.0,0.00039747,2]
[404759286,1770513041788,-300.0,0.00039747,2]
[404759287,1770513041799,-306.19819169,0.00039747,2]
[404759288,1770513041809,-310.67861148,0.00039747,2]
[404759289,1770513041820,-533.54169151,0.00039747,2]
[404759290,1770513041832,-457.17696299,0.00039747,2]
[404759291,1770513041842,-300.0,0.00039747,2]
[404759292,1770513041853,-300.0,0.00039747,2]
[404759293,1770513041864,-300.0,0.00039747,2]
[404759294,1770513041875,-370.09797997,0.00039747,2]
[404759295,1770513041887,-300.0,0.00039747,2]
[404759296,1770513041897,-300.0,0.00039747,2]
[404759297,1770513041908,-300.0,0.00039747,2]
[404759298,1770513041918,-300.0,0.00039747,2]
[404759299,1770513041929,-300.0,0.00039747,2]
[404759300,1770513041939,-300.0,0.00039747,2]
[404759301,1770513041950,-516.79047855,0.00039747,2]
[404759302,1770513041961,-305.17533586,0.00039747,2]
[404759303,1770513041973,-300.0,0.00039747,2]
[404759304,1770513041984,-300.0,0.00039747,2]
[404759305,1770513041995,-300.0,0.00039747,2]
[404759306,1770513042006,-153.94240824,0.00039764,2]
[404759307,1770513042017,-166.66,0.00039792,2]
[404759308,1770513042028,-50000.0,0.0004,40]
[404759309,1770513042285,-50000.0,0.0004,35]
[404759310,1770513042301,-250.0,0.0004,45]
[404759311,1770513042314,-150.0,0.00040406,2]
[404759312,1770513042324,-1567.92802206,0.00040697,15]
[404759313,1770513042335,-4470.32910549,0.00040739,15]
[404759314,1770513042345,-166.66,0.00040988,2]
[404759315,1770513042356,-320.65034333,0.00041,7]
[404759316,1770513042369,-507.0,0.00041078,12]
[404759317,1770513042378,-1000.0,0.00041099,2]
[404759318,1770513042387,-616.0,0.00041204,2]
[404759319,1770513042396,-1411.0,0.00041204,2]
[404759320,1770513042406,-955.027,0.00041204,2]
[404759321,1770513042415,-1272.0,0.00041204,2]
[404759322,1770513042424,-5151.362,0.00041204,2]
[404759323,1770513042433,-412.0,0.00041204,2]
[404759324,1770513042443,-2447.0,0.00041204,2]
[404759325,1770513042452,-200.0,0.00041276,2]
[404759326,1770513042461,-200.0,0.00041276,2]
[404759327,1770513042471,-200.0,0.00041276,2]
[404759328,1770513042480,-200.0,0.00041276,2]
[404759329,1770513042489,-200.0,0.00041276,2]
[404759330,1770513042499,-200.0,0.00041276,2]
[404759331,1770513042508,-200.0,0.00041276,2]
[404759332,1770513042522,-200.0,0.00041276,2]
[404759333,1770513042531,-200.0,0.00041276,2]
[404759334,1770513042541,-200.0,0.00041276,2]
[404759335,1770513042551,-200.0,0.00041276,2]
[404759336,1770513042564,-200.0,0.00041276,2]
[404759337,1770513042574,-200.0,0.00041276,2]
[404759338,1770513042583,-200.0,0.00041276,2]
[404759339,1770513042594,-200.0,0.00041276,2]
[404759340,1770513042604,-200.0,0.00041276,2]
[404759341,1770513042614,-200.0,0.00041276,2]
[404759342,1770513042623,-200.0,0.00041276,2]
[404759343,1770513042633,-200.0,0.00041276,2]
[404759344,1770513042642,-200.0,0.00041276,2]
[404759345,1770513042652,-200.0,0.00041276,2]
[404759346,1770513042662,-200.0,0.00041276,2]
[404759347,1770513042671,-200.0,0.00041276,2]
[404759348,1770513042681,-200.0,0.00041276,2]
[404759349,1770513042690,-200.0,0.00041276,2]
[404759350,1770513042700,-200.0,0.00041276,2]
[404759351,1770513042709,-200.0,0.00041276,2]
[404759352,1770513042719,-200.0,0.00041276,2]
[404759353,1770513042728,-200.0,0.00041276,2]
[404759354,1770513042738,-200.0,0.00041276,2]
[404759355,1770513042747,-200.0,0.00041276,2]
[404759356,1770513042756,-200.0,0.00041276,2]
[404759357,1770513042765,-200.0,0.00041276,2]
[404759358,1770513042774,-200.0,0.00041276,2]
[404759359,1770513042784,-200.0,0.00041276,2]
[404759360,1770513042793,-200.0,0.00041276,2]
[404759361,1770513042803,-205.0,0.00041276,2]
[404759362,1770513042812,-152.24,0.00041424,120]
[404759363,1770513042822,-152.24,0.00041524,120]
[404759364,1770513042831,-153.94240824,0.00041642,2]
[404759365,1770513042840,-320.0,0.00041808,120]
[404759366,1770513042850,-600.0,0.00042,120]
[404759367,1770513042859,-210.59733973,0.00042,2]
[404759368,1770513042869,-170.81,0.000421,14]
[404759369,1770513042878,-300.080908,0.00042123,109]
[404759370,1770513042888,-150.0,0.00042165,120]
[404759371,1770513042897,-166.66,0.00042183,2]
[404759372,1770513042907,-3924.75,0.000422,2]
[404759373,1770513042916,-1567.92802206,0.0004238,15]
[404759374,1770513042927,-4470.32910549,0.00042401,15]
[404759376,1770513042937,-150.0,0.00042426,120]
[404759378,1770513042946,-20000.0,0.00042466,120]
[404759379,1770513042955,-160.0,0.00042466,120]
[404759381,1770513042964,-1000.0,0.00042589,20]
[404759383,1770513042974,-507.0,0.0004277,14]
[404759386,1770513042983,-200.0,0.00042785,3]
[404759388,1770513042993,-48567.0,0.00042789,30]
[404759389,1770513043002,-160.0,0.00042789,30]
[404759390,1770513043012,-598.93,0.000428,30]
[404759391,1770513043022,-257.97447331,0.00042813,7]
[404759392,1770513043031,-300.0,0.00043,45]
[404759393,1770513043041,-260.0,0.00043,45]
[404759394,1770513043051,-19500.0,0.00043,2]
[404759395,1770513043060,-165.0,0.00043,90]
[404759396,1770513043070,-209.0,0.00043,30]
[404759397,1770513043079,-298.69378743,0.00043164,2]
[404759398,1770513043089,-500.0,0.0004317,30]
[404759399,1770513043099,-500.0,0.0004317,60]
[404759400,1770513043110,-504.68637928,0.0004317,60]
[404759401,1770513043120,-48567.0,0.00043231,30]
[404759402,1770513043130,-3539.88,0.000435,120]
[404759403,1770513043140,-153.94240824,0.00043519,2]
[404759404,1770513043150,-200.0,0.00043527,2]
[404759405,1770513043160,-1000.0,0.00043562,30]
[404759406,1770513043169,-48567.0,0.00043672,30]
[404759407,1770513043180,-2000.0,0.000437,2]
[404759408,1770513043191,-123021.4432068,0.0004373,2]
[404759409,1770513043202,-312.0,0.00043829,2]
[404759410,1770513043212,-497.29825063,0.00043835,120]
[404759411,1770513043223,-509.95009223,0.00043835,120]
[404759412,1770513043234,-500.0,0.00043835,120]
[404759413,1770513043244,-500.0,0.00043835,120]
[404759414,1770513043255,-500.0,0.00043835,120]
[404759415,1770513043265,-500.0,0.00043835,120]
[404759416,1770513043275,-500.0,0.00043835,120]
[404759417,1770513043287,-512.72044027,0.00043835,120]
[404759418,1770513043299,-500.0,0.00043835,120]
[404759419,1770513043308,-509.91741181,0.00043835,120]
[404759420,1770513043318,-500.0,0.00043835,120]
[404759421,1770513043328,-500.0,0.00043835,120]
[404759422,1770513043338,-500.0,0.00043835,120]
[404759423,1770513043348,-20000.0,0.00043835,120]
[404759424,1770513043359,-500.0,0.00043835,120]
[404759425,1770513043370,-500.0,0.00043835,120]
[404759426,1770513043380,-500.0,0.00043835,120]
[404759427,1770513043390,-500.0,0.00043835,120]
[404759428,1770513043400,-500.0,0.00043835,120]
[404759429,1770513043410,-258.16675102,0.00043835,120]
[404759430,1770513043419,-500.0,0.00043835,120]
[404759431,1770513043429,-500.0,0.00043835,120]
[404759432,1770513043439,-500.0,0.00043835,120]
[404759433,1770513043448,-500.0,0.00043835,120]
[404759434,1770513043457,-500.0,0.00043835,120]
[404759435,1770513043467,-500.0,0.00043835,120]
[404759436,1770513043477,-536.04695916,0.00043835,120]
[404759437,1770513043487,-500.0,0.00043835,120]
[404759438,1770513043498,-500.0,0.00043835,120]
[404759439,1770513043508,-500.0,0.00043835,120]
[404759440,1770513043522,-500.0,0.00043835,120]
[404759441,1770513043532,-500.0,0.00043835,120]
[404759442,1770513043541,-500.0,0.00043835,120]
[404759443,1770513043550,-416.32367025,0.00043835,120]
[404759444,1770513043560,-500.0,0.00043835,120]
[404759445,1770513043570,-500.0,0.00043835,120]
[404759446,1770513043579,-500.0,0.00043835,120]
[404759447,1770513043589,-500.0,0.00043835,120]
[404759448,1770513043598,-500.0,0.00043835,120]
[404759449,1770513043608,-166.10891575,0.00043835,120]
[404759450,1770513043618,-500.0,0.00043835,120]
[404759451,1770513043627,-500.0,0.00043835,120]
[404759452,1770513043636,-500.0,0.00043835,120]
[404759453,1770513043646,-500.0,0.00043835,120]
[404759454,1770513043656,-508.28624747,0.00043835,120]
[404759455,1770513043665,-500.0,0.00043835,120]
[404759456,1770513043675,-462.22140181,0.00043835,120]
[404759457,1770513043684,-193.48247632,0.00043835,14]
[404759458,1770513043694,-500.0,0.00043835,120]
[404759459,1770513043703,-500.0,0.00043835,120]
[404759460,1770513043714,-500.0,0.00043835,120]
[404759461,1770513043724,-500.0,0.00043835,120]
[404759462,1770513043733,-385.13249602,0.00043835,120]
[404759463,1770513043742,-500.0,0.00043835,120]
[404759464,1770513043752,-212.02417504,0.00043835,120]
[404759465,1770513043761,-1999.0,0.00043835,120]
[404759466,1770513043771,-500.0,0.00043835,120]
[404759467,1770513043780,-500.0,0.00043835,120]
[404759468,1770513043790,-500.0,0.00043835,120]
[404759469,1770513043799,-500.0,0.00043835,120]
[404759470,1770513043810,-486.45061493,0.00043835,120]
[404759471,1770513043820,-467.75981147,0.00043835,120]
[404759472,1770513043829,-500.0,0.00043835,120]
[404759473,1770513043839,-500.0,0.00043835,120]
[404759474,1770513043848,-500.0,0.00043835,120]
[404759475,1770513043858,-500.0,0.00043835,120]
[404759476,1770513043867,-500.0,0.00043835,120]
[404759477,1770513043877,-518.16311361,0.00043835,120]
[404759478,1770513043887,-192.48707619,0.00043835,120]
[404759479,1770513043896,-814.93,0.00043835,120]
[404759480,1770513043905,-814.93,0.00043835,120]
[404759481,1770513043915,-814.93,0.00043835,120]
[404759482,1770513043927,-814.93,0.00043835,120]
[404759483,1770513043938,-814.93,0.00043835,120]
[404759484,1770513043948,-814.93,0.00043835,120]
[404759485,1770513043957,-814.93,0.00043835,120]
[404759487,1770513043967,-814.93,0.00043835,120]
[404759489,1770513043977,-814.93,0.00043835,120]
[404759490,1770513043987,-814.93,0.00043835,120]
[404759491,1770513043996,-814.93,0.00043835,120]
[404759492,1770513044006,-814.93,0.00043835,120]
[404759493,1770513044015,-814.93,0.00043835,120]
[404759494,1770513044025,-814.93,0.00043835,120]
[404759495,1770513044035,-814.93,0.00043835,120]
[404759496,1770513044044,-814.93,0.00043835,120]
[404759497,1770513044054,-500.0,0.00043835,120]
[404759498,1770513044064,-500.0,0.00043835,120]
[404759499,1770513044073,-500.0,0.00043835,120]
[404759500,1770513044083,-500.0,0.00043835,120]
[404759501,1770513044093,-500.0,0.00043835,120]
[404759502,1770513044102,-500.0,0.00043835,120]
[404759503,1770513044114,-500.0,0.00043835,120]
[404759504,1770513044123,-541.38706927,0.00043835,120]
[404759506,1770513044132,-500.0,0.00043835,120]
[404759507,1770513044142,-500.0,0.00043835,120]
[404759509,1770513044151,-209.03365391,0.00043835,120]
[404759511,1770513044160,-586.55091096,0.00043835,120]
[404759513,1770513044169,-500.0,0.00043835,120]
[404759515,1770513044179,-178.06981994,0.00043835,120]
[404759517,1770513044188,-500.0,0.00043835,120]
[404759519,1770513044204,-500.0,0.00043835,120]
[404759521,1770513044216,-596.97253825,0.00043835,120]
[404759523,1770513044225,-500.0,0.00043835,120]
[404759525,1770513044234,-530.37198261,0.00043835,120]
[404759527,1770513044244,-500.0,0.00043835,120]
[404759529,1770513044253,-175.65594044,0.00043835,120]
[404759531,1770513044262,-500.0,0.00043835,120]
[404759532,1770513044270,-500.0,0.00043835,120]
[404759533,1770513044279,-500.0,0.00043835,120]
[404759535,1770513044289,-500.0,0.00043835,120]
[404759537,1770513044298,-500.0,0.00043835,120]
[404759539,1770513044307,-500.0,0.00043835,120]
[404759541,1770513044316,-500.0,0.00043835,120]
[404759543,1770513044326,-209.72917489,0.00043835,120]
[404759545,1770513044335,-361.95679091,0.00043835,120]
[404759547,1770513044345,-500.0,0.00043835,120]
[404759549,1770513044355,-500.0,0.00043835,120]
[404759550,1770513044366,-500.0,0.00043835,120]
[404759552,1770513044376,-500.0,0.00043835,120]
[404759554,1770513044386,-500.0,0.00043835,120]
[404759555,1770513044396,-171.60401407,0.00043835,120]
[404759556,1770513044405,-500.0,0.00043835,120]
[404759557,1770513044415,-344.70633679,0.00043835,120]
[404759558,1770513044426,-500.0,0.00043835,120]
[404759559,1770513044436,-500.0,0.00043835,120]
[404759560,1770513044446,-333.03193125,0.00043835,120]
[404759561,1770513044456,-500.0,0.00043835,120]
[404759562,1770513044468,-500.0,0.00043835,120]
[404759563,1770513044477,-500.0,0.00043835,120]
[404759564,1770513044487,-500.0,0.00043835,120]
[404759565,1770513044497,-179.67994106,0.00043835,120]
[404759566,1770513044507,-225.49939605,0.00043835,120]
[404759567,1770513044519,-628.31257914,0.00043835,120]
[404759568,1770513044530,-223.80485003,0.00043835,120]
[404759569,1770513044541,-500.0,0.00043835,120]
[404759570,1770513044550,-500.0,0.00043835,120]
[404759571,1770513044563,-500.0,0.00043835,120]
[404759572,1770513044572,-243.53078136,0.00043835,120]
[404759573,1770513044583,-500.0,0.00043835,120]
[404759574,1770513044594,-500.0,0.00043835,120]
[404759575,1770513044606,-500.0,0.00043835,120]
[404759576,1770513044616,-500.0,0.00043835,120]
[404759577,1770513044625,-500.0,0.00043835,120]
[404759578,1770513044635,-500.0,0.00043835,120]
[404759579,1770513044646,-500.0,0.00043835,120]
[404759580,1770513044660,-500.0,0.00043835,120]
[404759581,1770513044670,-194.06724193,0.00043835,120]
[404759582,1770513044679,-500.0,0.00043835,120]
[404759583,1770513044688,-530.40681031,0.00043835,120]
[404759584,1770513044698,-500.0,0.00043835,120]
[404759585,1770513044707,-500.0,0.00043835,120]
[404759586,1770513044716,-500.0,0.00043835,120]
[404759587,1770513044727,-500.0,0.00043835,120]
[404759588,1770513044736,-235.6558339,0.00043835,30]
[404759589,1770513044745,-500.0,0.00043835,120]
[404759590,1770513044754,-500.0,0.00043835,120]
[404759591,1770513044763,-169.60052713,0.00043835,120]
[404759592,1770513044773,-365.97248347,0.00043835,120]
[404759593,1770513044783,-500.0,0.00043835,120]
[404759594,1770513044792,-500.0,0.00043835,120]
[404759595,1770513044802,-500.0,0.00043835,120]
[404759596,1770513044811,-500.0,0.00043835,120]
[404759597,1770513044821,-500.0,0.00043835,120]
[404759598,1770513044831,-500.0,0.00043835,120]
[404759599,1770513044841,-500.0,0.00043835,120]
[404759600,1770513044851,-265.32175288,0.00043835,120]
[404759601,1770513044860,-500.0,0.00043835,120]
[404759602,1770513044870,-500.0,0.00043835,120]
[404759603,1770513044879,-500.0,0.00043835,120]
[404759604,1770513044889,-500.0,0.00043835,120]
[404759605,1770513044898,-500.0,0.00043835,120]
[404759606,1770513044908,-500.0,0.00043835,120]
[404759607,1770513044917,-500.0,0.00043835,120]
[404759608,1770513044927,-500.0,0.00043835,120]
[404759609,1770513044937,-500.0,0.00043835,120]
[404759610,1770513044950,-500.0,0.00043835,120]
[404759611,1770513044962,-500.0,0.00043835,120]
[404759612,1770513044972,-500.0,0.00043835,120]
[404759613,1770513044982,-301.93555933,0.00043835,120]
[404759614,1770513044993,-206.94879255,0.00043835,120]
[404759615,1770513045003,-172.97329733,0.00043835,120]
[404759616,1770513045011,-500.0,0.00043835,120]
[404759617,1770513045021,-407.1396537,0.00043835,120]
[404759618,1770513045031,-500.0,0.00043835,120]
[404759619,1770513045041,-500.0,0.00043835,120]
[404759620,1770513045052,-500.0,0.00043835,120]
[404759621,1770513045061,-500.0,0.00043835,120]
[404759622,1770513045071,-500.0,0.00043835,120]
[404759623,1770513045081,-500.0,0.00043835,120]
[404759624,1770513045093,-500.0,0.00043835,120]
[404759625,1770513045104,-500.0,0.00043835,120]
[404759626,1770513045118,-500.0,0.00043835,120]
[404759627,1770513045128,-500.0,0.00043835,120]
[404759628,1770513045139,-158.9088724,0.00043835,120]
[404759629,1770513045149,-500.0,0.00043835,120]
[404759630,1770513045159,-500.0,0.00043835,120]
[404759631,1770513045169,-500.0,0.00043835,120]
[404759632,1770513045179,-500.0,0.00043835,120]
[404759633,1770513045190,-500.0,0.00043835,120]
[404759634,1770513045202,-500.0,0.00043835,120]
[404759635,1770513045213,-372.87805523,0.00043835,120]
[404759637,1770513045224,-500.0,0.00043835,120]
[404759638,1770513045234,-546.32796775,0.00043835,120]
[404759639,1770513045246,-500.0,0.00043835,60]
[404759640,1770513045256,-500.0,0.00043835,60]
[404759641,1770513045266,-500.0,0.00043835,60]
[404759642,1770513045276,-500.0,0.00043835,60]
[404759643,1770513045286,-500.0,0.00043835,60]
[404759644,1770513045296,-500.0,0.00043835,60]